[Event "FRA-ch Youth U12W 2019"]
[Site "Hyeres"]
[Date "2019.04.17"]
[Round "5.1"]
[White "Schebacher, Solene"]
[Black "Fougerat, Emma"]
[Result "1-0"]
[ECO "B28"]
[WhiteElo "1555"]
[BlackElo "1585"]
[Annotator "NA RC"]
[PlyCount "173"]
[EventDate "2019.04.14"]
[EventType "swiss"]
[EventCountry "FRA"]
[SourceTitle "playchess.com"]
[Source "ChessBase"]
[SourceQuality "1"]
[TimeControl "5400+30"]

1. e4 {[%emt 0:00:00]} c5 {[%emt 0:00:00]} 2. Nf3 {[%emt 0:00:00]} a6 {[%emt 0:00:16]} 3. c3 {[%emt 0:02:24]} b5 {[%emt 0:00:28]} 4. Bd3 {[%emt 0:03:00]} c4 {[%emt 0:01:55]} 5. Bc2 {[%emt 0:01:10]} d5 {[%emt 0:05:21]} 6. O-O {[%emt 0:08:44]} Nc6 {[%emt 0:06:35]} 7. exd5 {[%emt 0:02:47]} Qxd5 {[%emt 0:00:20]} 8. d3 {[%emt 0:04:12]} cxd3 {[%emt 0:04:13]} 9. Bxd3 {[%emt 0:02:02]} e6 {[%emt 0:00:50]} 10. Bf4 {[%emt 0:02:57]} Nf6 {[%emt 0:00:28]} 11. Qe2 {[%emt 0:02:27]} Bc5 {[%emt 0:03:23]} 12. Rd1 {[%emt 0:08:07]} Qh5 {[%emt 0:03:12]} 13. h3 {[%emt 0:03:42]} O-O {[%emt 0:01:01]} 14. Nbd2 {[%emt 0:04:00]} Ba7 {[%emt 0:01:35]} 15. Nf1 {[%emt 0:01:24]} Bb8 {[%emt 0:02:11]} 16. Ng3 {[%emt 0:05:43]} Qc5 {[%emt 0:00:29]} 17. Be3 {[%emt 0:01:55]} Qe7 {[%emt 0:03:10]} 18. Ne4 {[%emt 0:00:52]} Nxe4 {[%emt 0:00:54]} 19. Bxe4 {[%emt 0:00:09]} Bb7 {[%emt 0:01:02]} 20. Bc2 {[%emt 0:08:13]} Qc7 {[%emt 0:06:17]} 21. Qd3 {[%emt 0:03:28]} f5 {[%emt 0:03:09]} 22. Qd7 {[%emt 0:01:32]} Qxd7 {[%emt 0:00:24]} 23. Rxd7 {[%emt 0:00:12]} Rf7 {[%emt 0:01:19]} 24. Rxf7 {[%emt 0:04:30]} Kxf7 {[%emt 0:00:02]} 25. Bb3 {[%emt 0:00:31]} h6 {[%emt 0:06:59]} 26. Rd1 {[%emt 0:03:34]} Bc8 {[%emt 0:02:40]} 27. Nd4 {[%emt 0:03:15]} Nxd4 {[%emt 0:02:06]} 28. Bxd4 {[%emt 0:01:51]} a5 {[%emt 0:02:23]} 29. a3 {[%emt 0:01:16]} a4 {[%emt 0:00:34]} 30. Ba2 {[%emt 0:01:39]} Ra6 {[%emt 0:01:03]} 31. Rc1 {[%emt 0:01:08]} Bf4 {[%emt 0:02:12]} 32. Re1 {[%emt 0:01:33]} Bb7 {[%emt 0:03:36]} 33. Be5 {[%emt 0:01:07]} Bg5 {[%emt 0:01:54]} 34. Rd1 {[%emt 0:01:51]} Bc8 {[%emt 0:02:38]} 35. c4 {[%emt 0:01:51]} bxc4 {[%emt 0:01:30]} 36. Bxc4 {[%emt 0:00:09]} Ra5 {[%emt 0:01:24]} 37. Bc3 {[%emt 0:01:24]} Rc5 {[%emt 0:00:12]} 38. Bd3 {[%emt 0:01:15]} Bf6 {[%emt 0:01:21]} 39. Rc1 {[%emt 0:01:49]} Bd4 {[%emt 0:03:29]} 40. Kf1 {[%emt 0:03:19]} e5 {[%emt 0:00:47]} 41. Ke2 {[%emt 0:01:45]} e4 {[%emt 0:00:44]} 42. Bb1 {[%emt 0:00:17]} Be6 {[%emt 0:00:42]} 43. f3 {[%emt 0:02:21]} Bc4+ {[%emt 0:02:43]} 44. Kd2 {[%emt 0:01:17]} e3+ {[%emt 0:02:43]} 45. Ke1 {[%emt 0:00:29]} Rd5 {[%emt 0:02:19]} 46. Bxd4 {[%emt 0:01:30]} Rxd4 {[%emt 0:00:02]} 47. Rxc4 {[%emt 0:04:49]} Rd2 {[%emt 0:01:42]} 48. Rc2 {[%emt 0:00:30]} Rd4 {[%emt 0:01:18]} 49. Rc7+ {[%emt 0:00:00]} Kf6 {[%emt 0:00:21]} 50. Rc6+ {[%emt 0:00:00]} Kg5 {[%emt 0:00:16]} 51. Rc5 {[%emt 0:00:00]} g6 {[%emt 0:00:06]} 52. g3 {[%emt 0:00:00]} Rd2 {[%emt 0:01:52]} 53. f4+ {[%emt 0:00:00]} Kf6 {[%emt 0:00:40]} 54. Rc2 {[%emt 0:00:07]} Rd6 {[%emt 0:00:30]} 55. Ba2 {[%emt 0:00:30]} g5 {[%emt 0:00:30]} 56. Ke2 {[%emt 0:00:30]} h5 {[%emt 0:00:30]} 57. Kxe3 {[%emt 0:00:30]} gxf4+ {[%emt 0:01:08]} 58. gxf4 {[%emt 0:01:35]} h4 {[%emt 0:00:31]} 59. Bb1 {[%emt 0:00:40]} Re6+ {[%emt 0:00:40]} 60. Kf3 {[%emt 0:00:19]} Rd6 {[%emt 0:00:21]} 61. Rc5 {[%emt 0:00:10]} Rd2 {[%emt 0:00:49]} 62. Rxf5+ {[%emt 0:00:06]} Ke6 {[%emt 0:00:10]} 63. Rb5 {[%emt 0:00:12]} Rd1 {[%emt 0:00:25]} 64. Ba2+ {[%emt 0:00:08]} Kf6 {[%emt 0:00:33]} 65. Kg4 {[%emt 0:00:32]} Rg1+ {[%emt 0:00:33]} 66. Kxh4 {[%emt 0:00:11]} Rg2 {[%emt 0:00:25]} 67. Bd5 {[%emt 0:00:44]} Rg7 {[%emt 0:00:26]} 68. Be4 {[%emt 0:00:34]} Rg8 {[%emt 0:00:12]} 69. Rf5+ {[%emt 0:00:32]} Ke7 {[%emt 0:00:19]} 70. Rg5 {[%emt 0:00:12]} Rh8+ {[%emt 0:00:21]} 71. Kg4 {[%emt 0:00:10]} Rb8 {[%emt 0:00:16]} 72. Rg7+ {[%emt 0:00:24]} Kf6 {[%emt 0:00:02]} 73. Rb7 {[%emt 0:00:14]} Rg8+ {[%emt 0:00:09]} 74. Kf3 {[%emt 0:00:06]} Rh8 {[%emt 0:00:07]} 75. Rb6+ {[%emt 0:05:04]} Kg7 {[%emt 0:00:36]} 76. Rb7+ {[%emt 0:00:00]} Kf6 {[%emt 0:00:02]} 77. Kg4 {[%emt 0:00:00]} Rg8+ {[%emt 0:00:01]} 78. Kh5 {[%emt 0:00:00]} Rh8+ {[%emt 0:00:00]} 79. Rh7 {[%emt 0:00:00]} Rb8 {[%emt 0:00:01]} 80. Ra7 {[%emt 0:00:00]} Rxb2 {[%emt 0:00:24]} 81. Rxa4 {[%emt 0:00:00]} Rb3 {[%emt 0:00:07]} 82. h4 {[%emt 0:00:00]} Rb5+ {[%emt 0:00:21]} 83. f5 {[%emt 0:00:00]} Rb8 {[%emt 0:00:19]} 84. Ra6+ {[%emt 0:00:00]} Ke5 {[%emt 0:00:16]} 85. Bd3 {[%emt 0:00:00]} Rh8+ {[%emt 0:00:21]} 86. Kg5 {[%emt 0:00:02]} Rg8+ {[%emt 0:00:30]} 87. Rg6 {[%emt 0:00:30]} 1-0

[Event "FRA-ch Youth U12W 2019"]
[Site "Hyeres"]
[Date "2019.04.17"]
[Round "5.2"]
[White "Schippke, Manon"]
[Black "Lazes, Alexia"]
[Result "1-0"]
[ECO "C00"]
[WhiteElo "1646"]
[BlackElo "1491"]
[Annotator "NA RC"]
[PlyCount "69"]
[EventDate "2019.04.14"]
[EventType "swiss"]
[EventCountry "FRA"]
[SourceTitle "playchess.com"]
[Source "ChessBase"]
[SourceQuality "1"]
[TimeControl "5400+30"]

1. e4 {[%emt 0:00:00]} e6 {[%emt 0:00:00]} 2. d3 {[%emt 0:00:03]} d5 {[%emt 0:00:00]} 3. Qe2 {[%emt 0:00:24]} Be7 {[%emt 0:01:21]} 4. Nf3 {[%emt 0:01:04]} Nf6 {[%emt 0:01:46]} 5. g3 {[%emt 0:00:53]} O-O {[%emt 0:03:00]} 6. Bg2 {[%emt 0:01:24]} Nbd7 {[%emt 0:05:10]} 7. e5 {[%emt 0:02:54]} Ne8 {[%emt 0:01:26]} 8. O-O {[%emt 0:03:17]} c5 {[%emt 0:02:33]} 9. c3 {[%emt 0:08:07]} Qc7 {[%emt 0:03:59]} 10. d4 {[%emt 0:05:26]} a6 {[%emt 0:04:51]} 11. a4 {[%emt 0:03:57]} b6 {[%emt 0:06:04]} 12. Bf4 {[%emt 0:02:09]} Rb8 {[%emt 0:05:43]} 13. h4 {[%emt 0:04:58]} b5 {[%emt 0:07:38]} 14. a5 {[%emt 0:03:30]} cxd4 {[%emt 0:06:07]} 15. cxd4 {[%emt 0:00:35]} Qc4 {[%emt 0:02:55]} 16. Qe3 {[%emt 0:02:23]} Qb4 {[%emt 0:02:49]} 17. Nbd2 {[%emt 0:02:24]} Bd8 {[%emt 0:02:02]} 18. Nb3 {[%emt 0:05:18]} Rb7 {[%emt 0:06:12]} 19. Rfc1 {[%emt 0:03:01]} Rc7 {[%emt 0:05:20]} 20. Qd3 {[%emt 0:07:23]} h6 {[%emt 0:06:36]} 21. g4 {[%emt 0:03:02]} Bb7 {[%emt 0:03:17]} 22. h5 {[%emt 0:02:58]} Rxc1+ {[%emt 0:03:44]} 23. Rxc1 {[%emt 0:00:20]} Nb8 {[%emt 0:10:49]} 24. g5 {[%emt 0:00:58]} hxg5 {[%emt 0:01:29]} 25. Nxg5 {[%emt 0:01:48]} Bxg5 {[%emt 0:00:11]} 26. Bxg5 {[%emt 0:00:09]} Nc6 {[%emt 0:01:02]} 27. h6 {[%emt 0:01:08]} g6 {[%emt 0:00:28]} 28. h7+ {[%emt 0:03:48]} Kxh7 {[%emt 0:00:19]} 29. Qh3+ {[%emt 0:00:06]} Kg8 {[%emt 0:01:33]} 30. Qh6 {[%emt 0:02:05]} Nxd4 {[%emt 0:01:06]} 31. Nxd4 {[%emt 0:00:13]} Qxd4 {[%emt 0:00:43]} 32. Be7 {[%emt 0:00:10]} Ng7 {[%emt 0:00:48]} 33. Bxf8 {[%emt 0:00:05]} Qxe5 {[%emt 0:01:51]} 34. Bxg7 {[%emt 0:00:19]} Qxg7 {[%emt 0:00:16]} 35. Qxg7+ {[%emt 0:00:05]} 1-0

[Event "FRA-ch Youth U12W 2019"]
[Site "Hyeres"]
[Date "2019.04.17"]
[Round "5.3"]
[White "Berezovsky, Fiorina"]
[Black "Gagua, Nani"]
[Result "0-1"]
[ECO "A15"]
[WhiteElo "1604"]
[BlackElo "1458"]
[Annotator "NA RC"]
[PlyCount "54"]
[EventDate "2019.04.14"]
[EventType "swiss"]
[EventCountry "FRA"]
[SourceTitle "playchess.com"]
[Source "ChessBase"]
[SourceQuality "1"]
[TimeControl "5400+30"]

1. d4 {[%emt 0:00:00]} Nf6 {[%emt 0:00:00]} 2. c4 {[%emt 0:00:00]} e6 {[%emt 0:00:00]} 3. g3 {[%emt 0:00:03]} Be7 {[%emt 0:00:58]} 4. Bg2 {[%emt 0:01:00]} O-O {[%emt 0:01:32]} 5. Nf3 {[%emt 0:01:02]} d6 {[%emt 0:00:29]} 6. O-O {[%emt 0:00:51]} Nbd7 {[%emt 0:00:17]} 7. Nc3 {[%emt 0:00:48]} Nb6 {[%emt 0:12:15]} 8. b3 {[%emt 0:04:26]} d5 {[%emt 0:02:33]} 9. Ne5 {[%emt 0:07:29]} h6 {[%emt 0:04:39]} 10. c5 {[%emt 0:01:16]} Nbd7 {[%emt 0:00:27]} 11. f4 {[%emt 0:00:30]} Nxe5 {[%emt 0:02:47]} 12. fxe5 {[%emt 0:00:18]} Nd7 {[%emt 0:00:39]} 13. e4 {[%emt 0:01:37]} c6 {[%emt 0:03:36]} 14. exd5 {[%emt 0:02:03]} exd5 {[%emt 0:01:53]} 15. b4 {[%emt 0:06:19]} Bg5 {[%emt 0:09:46]} 16. Bf4 {[%emt 0:03:41]} Qe7 {[%emt 0:08:16]} 17. Qe2 {[%emt 0:04:23]} Re8 {[%emt 0:01:11]} 18. Qh5 {[%emt 0:02:22]} Rf8 {[%emt 0:07:44]} 19. Rae1 {[%emt 0:02:15]} Nb8 {[%emt 0:01:55]} 20. h4 {[%emt 0:09:40]} Bxf4 {[%emt 0:01:37]} 21. gxf4 {[%emt 0:00:29]} Kh7 {[%emt 0:12:09]} 22. f5 {[%emt 0:06:38]} Rg8 {[%emt 0:10:17]} 23. Kh1 {[%emt 0:19:41]} Na6 {[%emt 0:02:57]} 24. f6 {[%emt 0:01:48]} gxf6 {[%emt 0:03:06]} 25. exf6 {[%emt 0:01:31]} Qf8 {[%emt 0:01:11]} 26. Re7 {[%emt 0:02:07]} Rg6 {[%emt 0:00:19]} 27. Qxg6+ {[%emt 0:00:54]} Kxg6 {[%emt 0:00:26]} 0-1

[Event "FRA-ch Youth U12W 2019"]
[Site "Hyeres"]
[Date "2019.04.17"]
[Round "5.4"]
[White "Micheli, Elora"]
[Black "Ider, Ariuna"]
[Result "1-0"]
[ECO "B01"]
[WhiteElo "1359"]
[BlackElo "1474"]
[Annotator "NA RC"]
[PlyCount "56"]
[EventDate "2019.04.14"]
[EventType "swiss"]
[EventCountry "FRA"]
[SourceTitle "playchess.com"]
[Source "ChessBase"]
[SourceQuality "1"]
[TimeControl "5400+30"]

1. e4 {[%emt 0:00:33]} d5 {[%emt 0:00:10]} 2. exd5 {[%emt 0:01:05]} Qxd5 {[%emt 0:01:16]} 3. Nc3 {[%emt 0:01:16]} Qd6 {[%emt 0:01:07]} 4. d4 {[%emt 0:01:42]} Nf6 {[%emt 0:01:03]} 5. Bc4 {[%emt 0:05:24]} a6 {[%emt 0:01:04]} 6. Nge2 {[%emt 0:03:25]} b5 {[%emt 0:00:50]} 7. Bb3 {[%emt 0:02:10]} Bb7 {[%emt 0:01:54]} 8. Bf4 {[%emt 0:03:02]} Qd7 {[%emt 0:05:36]} 9. f3 {[%emt 0:04:20]} c5 {[%emt 0:02:09]} 10. dxc5 {[%emt 0:01:12]} Qxd1+ {[%emt 0:00:19]} 11. Rxd1 {[%emt 0:00:34]} Nbd7 {[%emt 0:00:23]} 12. c6 {[%emt 0:12:07]} Bxc6 {[%emt 0:00:33]} 13. Nd4 {[%emt 0:03:12]} Bb7 {[%emt 0:04:34]} 14. Be3 {[%emt 0:02:57]} e6 {[%emt 0:03:22]} 15. Bf2 {[%emt 0:01:56]} Bb4 {[%emt 0:02:15]} 16. O-O {[%emt 0:04:58]} Bxc3 {[%emt 0:02:15]} 17. bxc3 {[%emt 0:00:08]} Rc8 {[%emt 0:00:11]} 18. Ne2 {[%emt 0:01:11]} Nc5 {[%emt 0:00:16]} 19. Bd4 {[%emt 0:01:28]} O-O {[%emt 0:05:01]} 20. Rfe1 {[%emt 0:06:06]} a5 {[%emt 0:06:22]} 21. a3 {[%emt 0:02:31]} Bd5 {[%emt 0:06:00]} 22. Bxf6 {[%emt 0:04:18]} Bxb3 {[%emt 0:00:37]} 23. cxb3 {[%emt 0:00:32]} Nxb3 {[%emt 0:00:54]} 24. Bh4 {[%emt 0:02:35]} f6 {[%emt 0:01:54]} 25. Rb1 {[%emt 0:00:52]} a4 {[%emt 0:00:28]} 26. Red1 {[%emt 0:03:10]} g5 {[%emt 0:01:07]} 27. Bf2 {[%emt 0:00:15]} Rfd8 {[%emt 0:00:29]} 28. Bb6 {[%emt 0:00:59]} Rd2 {[%emt 0:51:51]} 1-0

[Event "FRA-ch Youth U12W 2019"]
[Site "Hyeres"]
[Date "2019.04.18"]
[Round "6.1"]
[White "Schippke, Manon"]
[Black "Schebacher, Solene"]
[Result "1-0"]
[ECO "A05"]
[WhiteElo "1646"]
[BlackElo "1555"]
[Annotator "NA"]
[PlyCount "68"]
[EventDate "2019.04.14"]
[EventType "swiss"]
[EventCountry "FRA"]
[SourceTitle "playchess.com"]
[Source "ChessBase"]
[SourceQuality "1"]
[TimeControl "5400+30"]

1. e4 {[%emt 0:00:00]} c5 {[%emt 0:00:00]} 2. Nf3 {[%emt 0:00:00]} Nc6 {[%emt 0:00:12]} 3. g3 {[%emt 0:00:32]} g6 {[%emt 0:00:45]} 4. Bg2 {[%emt 0:00:44]} Bg7 {[%emt 0:00:32]} 5. O-O {[%emt 0:00:36]} d6 {[%emt 0:02:16]} 6. d3 {[%emt 0:01:23]} Nf6 {[%emt 0:01:56]} 7. Re1 {[%emt 0:02:23]} O-O {[%emt 0:03:58]} 8. c3 {[%emt 0:01:11]} Bd7 {[%emt 0:09:26]} 9. d4 {[%emt 0:05:30]} cxd4 {[%emt 0:01:23]} 10. cxd4 {[%emt 0:00:08]} Bg4 {[%emt 0:00:38]} 11. h3 {[%emt 0:04:43]} Bxf3 {[%emt 0:01:05]} 12. Bxf3 {[%emt 0:00:12]} Qb6 {[%emt 0:00:48]} 13. d5 {[%emt 0:01:12]} Nd4 {[%emt 0:01:21]} 14. Bg2 {[%emt 0:00:41]} Nd7 {[%emt 0:01:46]} 15. Nc3 {[%emt 0:04:33]} Rfc8 {[%emt 0:09:08]} 16. Be3 {[%emt 0:32:26]} Qxb2 {[%emt 0:18:34]} 17. Na4 {[%emt 0:00:24]} Qc2 {[%emt 0:00:41]} 18. Bxd4 {[%emt 0:01:44]} Bxd4 {[%emt 0:03:16]} 19. Qxd4 {[%emt 0:00:38]} Rc4 {[%emt 0:01:13]} 20. Qb2 {[%emt 0:08:17]} Qxa4 {[%emt 0:00:35]} 21. Rec1 {[%emt 0:04:44]} Nc5 {[%emt 0:05:45]} 22. Rxc4 {[%emt 0:03:11]} Qxc4 {[%emt 0:00:32]} 23. e5 {[%emt 0:01:41]} Qa6 {[%emt 0:16:39]} 24. exd6 {[%emt 0:02:44]} Qxd6 {[%emt 0:00:36]} 25. Rc1 {[%emt 0:02:45]} b6 {[%emt 0:00:36]} 26. Qe2 {[%emt 0:01:18]} Rb8 {[%emt 0:04:24]} 27. Qb5 {[%emt 0:03:36]} a6 {[%emt 0:02:25]} 28. Qc6 {[%emt 0:01:16]} Qd8 {[%emt 0:01:39]} 29. Rb1 {[%emt 0:01:25]} Qd6 {[%emt 0:06:51]} 30. a4 {[%emt 0:05:55]} Qxc6 {[%emt 0:04:49]} 31. dxc6 {[%emt 0:00:05]} Nxa4 {[%emt 0:00:21]} 32. Rd1 {[%emt 0:00:15]} Rc8 {[%emt 0:01:07]} 33. Rd7 {[%emt 0:00:07]} Kf8 {[%emt 0:00:15]} 34. c7 {[%emt 0:00:43]} Kg7 {[%emt 0:01:28]} 1-0

[Event "FRA-ch Youth U12W 2019"]
[Site "Hyeres"]
[Date "2019.04.18"]
[Round "6.2"]
[White "Gagua, Nani"]
[Black "Deladerriere, Calypso"]
[Result "1-0"]
[ECO "C54"]
[WhiteElo "1458"]
[BlackElo "1443"]
[Annotator "NA"]
[PlyCount "83"]
[EventDate "2019.04.14"]
[EventType "swiss"]
[EventCountry "FRA"]
[SourceTitle "playchess.com"]
[Source "ChessBase"]
[SourceQuality "1"]
[TimeControl "5400+30"]

1. e4 {[%emt 0:00:00]} e5 {[%emt 0:00:00]} 2. Nf3 {[%emt 0:00:00]} Nc6 {[%emt 0:00:20]} 3. Bc4 {[%emt 0:00:00]} Nf6 {[%emt 0:00:29]} 4. d3 {[%emt 0:00:05]} Bc5 {[%emt 0:00:37]} 5. c3 {[%emt 0:00:16]} d6 {[%emt 0:01:33]} 6. h3 {[%emt 0:00:35]} h6 {[%emt 0:01:52]} 7. Nbd2 {[%emt 0:00:10]} a6 {[%emt 0:01:53]} 8. a4 {[%emt 0:01:06]} Be6 {[%emt 0:01:45]} 9. Bb3 {[%emt 0:00:41]} O-O {[%emt 0:02:12]} 10. O-O {[%emt 0:00:06]} Nh5 {[%emt 0:01:15]} 11. Bxe6 {[%emt 0:14:32]} fxe6 {[%emt 0:01:08]} 12. Nb3 {[%emt 0:15:47]} Ba7 {[%emt 0:05:44]} 13. d4 {[%emt 0:07:43]} exd4 {[%emt 0:00:57]} 14. Nbxd4 {[%emt 0:02:58]} Nxd4 {[%emt 0:08:07]} 15. Nxd4 {[%emt 0:00:21]} Qe8 {[%emt 0:00:30]} 16. Qb3 {[%emt 0:03:09]} Bxd4 {[%emt 0:02:13]} 17. cxd4 {[%emt 0:00:15]} b6 {[%emt 0:00:31]} 18. Be3 {[%emt 0:00:56]} Nf4 {[%emt 0:03:21]} 19. Bxf4 {[%emt 0:06:11]} Rxf4 {[%emt 0:00:17]} 20. Qe3 {[%emt 0:12:17]} Rf7 {[%emt 0:02:12]} 21. Qb3 {[%emt 0:03:36]} e5 {[%emt 0:05:25]} 22. Rac1 {[%emt 0:05:39]} Rc8 {[%emt 0:02:38]} 23. d5 {[%emt 0:02:26]} Kh8 {[%emt 0:03:16]} 24. Rc6 {[%emt 0:01:11]} a5 {[%emt 0:04:35]} 25. Rfc1 {[%emt 0:01:06]} Qd7 {[%emt 0:01:51]} 26. Qc2 {[%emt 0:04:13]} Kh7 {[%emt 0:00:43]} 27. b3 {[%emt 0:00:55]} Kh8 {[%emt 0:00:20]} 28. Rxb6 {[%emt 0:00:54]} Ra8 {[%emt 0:03:28]} 29. Rb7 {[%emt 0:01:12]} Qd8 {[%emt 0:03:50]} 30. Rxc7 {[%emt 0:01:01]} Rf8 {[%emt 0:01:20]} 31. Qe2 {[%emt 0:03:16]} Qb8 {[%emt 0:01:29]} 32. Qg4 {[%emt 0:00:39]} Rg8 {[%emt 0:00:24]} 33. Rf7 {[%emt 0:00:51]} Ra7 {[%emt 0:02:47]} 34. Rxa7 {[%emt 0:00:46]} Qxa7 {[%emt 0:00:06]} 35. Rc8 {[%emt 0:00:50]} Qf7 {[%emt 0:02:28]} 36. Rxg8+ {[%emt 0:00:22]} Qxg8 {[%emt 0:00:51]} 37. Qd7 {[%emt 0:00:50]} Qb8 {[%emt 0:02:17]} 38. Qb5 {[%emt 0:00:10]} Qd8 {[%emt 0:00:09]} 39. b4 {[%emt 0:00:42]} axb4 {[%emt 0:01:45]} 40. Qxb4 {[%emt 0:00:07]} Qc7 {[%emt 0:01:02]} 41. g3 {[%emt 0:00:22]} Kg8 {[%emt 0:05:11]} 42. a5 {[%emt 0:00:13]} 1-0

[Event "FRA-ch Youth U12W 2019"]
[Site "Hyeres"]
[Date "2019.04.18"]
[Round "6.3"]
[White "Riss, Selenia"]
[Black "Micheli, Elora"]
[Result "0-1"]
[ECO "B23"]
[WhiteElo "1347"]
[BlackElo "1359"]
[Annotator "NA"]
[PlyCount "76"]
[EventDate "2019.04.14"]
[EventType "swiss"]
[EventCountry "FRA"]
[SourceTitle "playchess.com"]
[Source "ChessBase"]
[SourceQuality "1"]
[TimeControl "5400+30"]

1. e4 {[%emt 0:00:00]} c5 {[%emt 0:00:12]} 2. Nc3 {[%emt 0:00:00]} a6 {[%emt 0:01:03]} 3. g3 {[%emt 0:02:40]} b5 {[%emt 0:01:51]} 4. Bg2 {[%emt 0:03:56]} Bb7 {[%emt 0:02:57]} 5. f4 {[%emt 0:07:09]} e6 {[%emt 0:03:26]} 6. Qe2 {[%emt 0:08:37]} Nc6 {[%emt 0:02:19]} 7. Nf3 {[%emt 0:05:20]} Nf6 {[%emt 0:04:50]} 8. e5 {[%emt 0:09:17]} Ng8 {[%emt 0:02:08]} 9. O-O {[%emt 0:02:21]} h5 {[%emt 0:00:58]} 10. d3 {[%emt 0:04:36]} Be7 {[%emt 0:02:14]} 11. Be3 {[%emt 0:04:32]} Rc8 {[%emt 0:03:53]} 12. Qf2 {[%emt 0:02:19]} Nb8 {[%emt 0:03:22]} 13. Ne4 {[%emt 0:04:13]} Qc7 {[%emt 0:03:28]} 14. Nfd2 {[%emt 0:05:21]} a5 {[%emt 0:02:46]} 15. a3 {[%emt 0:01:11]} Nh6 {[%emt 0:02:45]} 16. h3 {[%emt 0:09:00]} Nf5 {[%emt 0:01:21]} 17. c3 {[%emt 0:04:36]} Nxe3 {[%emt 0:04:04]} 18. Qxe3 {[%emt 0:00:09]} a4 {[%emt 0:02:17]} 19. Nf3 {[%emt 0:03:53]} Bd5 {[%emt 0:11:08]} 20. d4 {[%emt 0:03:51]} Qc6 {[%emt 0:04:01]} 21. Nf2 {[%emt 0:03:14]} d6 {[%emt 0:01:16]} 22. exd6 {[%emt 0:02:07]} Bxd6 {[%emt 0:00:50]} 23. Rac1 {[%emt 0:03:30]} O-O {[%emt 0:04:17]} 24. Rfe1 {[%emt 0:02:39]} Nd7 {[%emt 0:01:19]} 25. Nd3 {[%emt 0:01:53]} Rfe8 {[%emt 0:06:40]} 26. Kh2 {[%emt 0:01:15]} Qb7 {[%emt 0:03:20]} 27. Qd2 {[%emt 0:02:46]} Bxf3 {[%emt 0:00:23]} 28. Bxf3 {[%emt 0:00:06]} Qxf3 {[%emt 0:00:11]} 29. Rf1 {[%emt 0:00:17]} Qd5 {[%emt 0:00:53]} 30. Nf2 {[%emt 0:01:17]} cxd4 {[%emt 0:00:51]} 31. cxd4 {[%emt 0:00:09]} Nc5 {[%emt 0:03:12]} 32. Qc3 {[%emt 0:01:07]} Nb3 {[%emt 0:01:34]} 33. Qxc8 {[%emt 0:01:52]} Rxc8 {[%emt 0:00:16]} 34. Rxc8+ {[%emt 0:00:06]} Kh7 {[%emt 0:00:07]} 35. Rd1 {[%emt 0:00:56]} Nxd4 {[%emt 0:00:32]} 36. Rdc1 {[%emt 0:01:03]} Nf3+ {[%emt 0:00:12]} 37. Kh1 {[%emt 0:00:22]} Nh4+ {[%emt 0:00:24]} 38. Kg1 {[%emt 0:00:29]} Qg2# {[%emt 0:21:40]} 0-1

[Event "FRA-ch Youth U12W 2019"]
[Site "Hyeres"]
[Date "2019.04.18"]
[Round "6.4"]
[White "Bellahcene, Jenna"]
[Black "Weigelt, Elea"]
[Result "1/2-1/2"]
[ECO "C40"]
[WhiteElo "1305"]
[BlackElo "1378"]
[Annotator "NA"]
[PlyCount "61"]
[EventDate "2019.04.14"]
[EventType "swiss"]
[EventCountry "FRA"]
[SourceTitle "playchess.com"]
[Source "ChessBase"]
[SourceQuality "1"]
[TimeControl "5400+30"]

1. e4 {[%emt 0:00:00]} e5 {[%emt 0:00:02]} 2. Nf3 {[%emt 0:00:00]} d5 {[%emt 0:00:35]} 3. exd5 {[%emt 0:04:31]} e4 {[%emt 0:01:09]} 4. Nd4 {[%emt 0:01:20]} Qxd5 {[%emt 0:01:16]} 5. Nb3 {[%emt 0:00:53]} Nf6 {[%emt 0:02:53]} 6. Nc3 {[%emt 0:01:16]} Qe5 {[%emt 0:01:37]} 7. Be2 {[%emt 0:05:03]} a6 {[%emt 0:05:35]} 8. O-O {[%emt 0:08:23]} Bd6 {[%emt 0:03:10]} 9. g3 {[%emt 0:04:55]} O-O {[%emt 0:09:07]} 10. Re1 {[%emt 0:05:40]} Re8 {[%emt 0:13:36]} 11. d4 {[%emt 0:06:11]} Qf5 {[%emt 0:16:30]} 12. Be3 {[%emt 0:04:12]} Nbd7 {[%emt 0:04:50]} 13. Qd2 {[%emt 0:06:40]} Nb6 {[%emt 0:12:20]} 14. Rad1 {[%emt 0:06:37]} Nbd5 {[%emt 0:04:31]} 15. Nxd5 {[%emt 0:02:40]} Nxd5 {[%emt 0:00:25]} 16. Bf1 {[%emt 0:04:57]} Qg6 {[%emt 0:04:02]} 17. Bg2 {[%emt 0:03:00]} Bg4 {[%emt 0:01:37]} 18. Rc1 {[%emt 0:02:26]} Bf3 {[%emt 0:01:36]} 19. a3 {[%emt 0:02:32]} c6 {[%emt 0:06:17]} 20. c4 {[%emt 0:04:23]} Nf6 {[%emt 0:02:54]} 21. Bf4 {[%emt 0:02:24]} Bxf4 {[%emt 0:01:14]} 22. Qxf4 {[%emt 0:00:08]} Nh5 {[%emt 0:00:54]} 23. Qe3 {[%emt 0:00:30]} Bxg2 {[%emt 0:00:33]} 24. Kxg2 {[%emt 0:00:11]} b6 {[%emt 0:01:10]} 25. c5 {[%emt 0:03:22]} b5 {[%emt 0:00:56]} 26. Nd2 {[%emt 0:00:40]} f5 {[%emt 0:00:50]} 27. Kh1 {[%emt 0:01:09]} Nf6 {[%emt 0:01:08]} 28. Nf1 {[%emt 0:03:30]} a5 {[%emt 0:01:01]} 29. Rcd1 {[%emt 0:02:32]} Nd5 {[%emt 0:00:47]} 30. Qb3 {[%emt 0:00:54]} a4 {[%emt 0:00:16]} 31. Qc2 {[%emt 0:00:30]} 1/2-1/2